[Event "Early-Titled-Tuesday-Blitz-March-19-2024"]
[Site "Chess.com"]
[Date "2024.03.19"]
[Round "9"]
[White "campochess"]
[Black "visa"]
[Result "1-0"]
[WhiteElo "2195"]
[BlackElo "2296"]
[TimeControl "180+1"]
[EndTime "9:44:49 PDT"]
[Termination "campochess won on time"]

1. d4 {[%clk 0:02:58.7]} 1... Nf6 {[%clk 0:02:56.8]} 2. Bg5 {[%clk 0:02:58.3]}
2... e6 {[%clk 0:02:55.6]} 3. e3 {[%clk 0:02:57.5]} 3... c5 {[%clk 0:02:55.5]}
4. c3 {[%clk 0:02:56.5]} 4... Be7 {[%clk 0:02:54]} 5. Nf3 {[%clk 0:02:56]} 5...
b6 {[%clk 0:02:53.6]} 6. Bb5 {[%clk 0:02:55.3]} 6... a6 {[%clk 0:02:52.8]} 7.
Bd3 {[%clk 0:02:54.6]} 7... Bb7 {[%clk 0:02:52.7]} 8. O-O {[%clk 0:02:54.3]}
8... h6 {[%clk 0:02:52]} 9. Bh4 {[%clk 0:02:52.9]} 9... d6 {[%clk 0:02:52.2]}
10. Nbd2 {[%clk 0:02:52.6]} 10... Nbd7 {[%clk 0:02:51.5]} 11. Re1 {[%clk
0:02:52.6]} 11... O-O {[%clk 0:02:49.6]} 12. e4 {[%clk 0:02:52.7]} 12... Nh5
{[%clk 0:02:46.7]} 13. Bg3 {[%clk 0:02:49.6]} 13... Nxg3 {[%clk 0:02:40.9]} 14.
hxg3 {[%clk 0:02:48.8]} 14... Nf6 {[%clk 0:02:37.4]} 15. Qe2 {[%clk 0:02:45.5]}
15... Qc7 {[%clk 0:02:34.3]} 16. Rad1 {[%clk 0:02:39.5]} 16... Rfc8 {[%clk
0:02:32.5]} 17. e5 {[%clk 0:02:38.3]} 17... dxe5 {[%clk 0:02:28.9]} 18. Nxe5
{[%clk 0:02:36.5]} 18... cxd4 {[%clk 0:02:15.1]} 19. cxd4 {[%clk 0:02:22.9]}
19... Bd6 {[%clk 0:02:12.2]} 20. Ndc4 {[%clk 0:02:16.8]} 20... b5 {[%clk
0:02:07.3]} 21. Nxd6 {[%clk 0:02:16.2]} 21... Qxd6 {[%clk 0:02:06.5]} 22. Ng4
{[%clk 0:02:01]} 22... Nxg4 {[%clk 0:01:53]} 23. Qxg4 {[%clk 0:02:00]} 23... f5
{[%clk 0:01:36.4]} 24. Qe2 {[%clk 0:01:56.3]} 24... Bd5 {[%clk 0:01:26.2]} 25.
b3 {[%clk 0:01:49.9]} 25... b4 {[%clk 0:01:21]} 26. g4 {[%clk 0:01:48.3]} 26...
f4 {[%clk 0:01:04.8]} 27. Bb1 {[%clk 0:01:31.1]} 27... Rc3 {[%clk 0:00:59.7]}
28. g5 {[%clk 0:01:20.9]} 28... f3 {[%clk 0:00:58]} 29. Qe5 {[%clk 0:01:15.6]}
29... Qxe5 {[%clk 0:00:54.6]} 30. Rxe5 {[%clk 0:01:14.3]} 30... fxg2 {[%clk
0:00:54.3]} 31. gxh6 {[%clk 0:01:13.6]} 31... gxh6 {[%clk 0:00:54.5]} 32. Be4
{[%clk 0:01:10.6]} 32... Bxe4 {[%clk 0:00:31.6]} 33. Rxe4 {[%clk 0:01:09.5]}
33... Rc2 {[%clk 0:00:32.1]} 34. Rxe6 {[%clk 0:01:05.6]} 34... Rf8 {[%clk
0:00:29.4]} 35. Rg6+ {[%clk 0:00:58.3]} 35... Kh7 {[%clk 0:00:27.8]} 36. Rxg2
{[%clk 0:00:58.3]} 36... Rxa2 {[%clk 0:00:28]} 37. d5 {[%clk 0:00:54.8]} 37...
Rd8 {[%clk 0:00:21.3]} 38. d6 {[%clk 0:00:53.1]} 38... Rc2 {[%clk 0:00:17.4]}
39. Rg4 {[%clk 0:00:52.4]} 39... a5 {[%clk 0:00:16.4]} 40. Rgd4 {[%clk
0:00:51.5]} 40... Rc3 {[%clk 0:00:15.4]} 41. d7 {[%clk 0:00:50.2]} 41... Kg7
{[%clk 0:00:07.1]} 42. Re1 {[%clk 0:00:45.1]} 42... Kf6 {[%clk 0:00:05.6]} 43.
Re8 {[%clk 0:00:41.1]} 1-0

[Event "Early-Titled-Tuesday-Blitz-March-19-2024"]
[Site "Chess.com"]
[Date "2024.03.19"]
[Round "9"]
[White "JimDiGrease"]
[Black "SARGISMV"]
[Result "1-0"]
[WhiteElo "2968"]
[BlackElo "2511"]
[TimeControl "180+1"]
[EndTime "9:44:52 PDT"]
[Termination "JimDiGrease won by resignation"]

1. d4 {[%clk 0:03:00.9]} 1... Nf6 {[%clk 0:02:58.1]} 2. c4 {[%clk 0:03:00.9]}
2... c5 {[%clk 0:02:57.9]} 3. d5 {[%clk 0:03:01.3]} 3... e6 {[%clk 0:02:58.3]}
4. Bf4 {[%clk 0:03:00.6]} 4... exd5 {[%clk 0:02:59.2]} 5. cxd5 {[%clk
0:03:01.4]} 5... d6 {[%clk 0:02:59.5]} 6. e4 {[%clk 0:03:01.6]} 6... a6 {[%clk
0:02:59.8]} 7. Bd3 {[%clk 0:02:58.3]} 7... b5 {[%clk 0:02:59]} 8. Nf3 {[%clk
0:02:57]} 8... Nbd7 {[%clk 0:02:58.8]} 9. a4 {[%clk 0:02:57.5]} 9... c4 {[%clk
0:02:57.7]} 10. Bc2 {[%clk 0:02:53.6]} 10... b4 {[%clk 0:02:40.2]} 11. Nbd2
{[%clk 0:02:48.2]} 11... b3 {[%clk 0:02:01.8]} 12. Bb1 {[%clk 0:02:47.7]} 12...
Qc7 {[%clk 0:02:02.7]} 13. Qc1 {[%clk 0:02:31.1]} 13... Ne5 {[%clk 0:01:46.8]}
14. Bxe5 {[%clk 0:02:20.1]} 14... dxe5 {[%clk 0:01:47.7]} 15. Qxc4 {[%clk
0:02:20.5]} 15... Qxc4 {[%clk 0:01:45.9]} 16. Nxc4 {[%clk 0:02:21.4]} 16... Bb4+
{[%clk 0:01:45.6]} 17. Ke2 {[%clk 0:02:21.8]} 17... O-O {[%clk 0:01:37.1]} 18.
Nfxe5 {[%clk 0:02:21.3]} 18... Re8 {[%clk 0:01:37.1]} 19. f3 {[%clk 0:01:58.3]}
19... Nxd5 {[%clk 0:01:12]} 20. exd5 {[%clk 0:01:59.2]} 20... f6 {[%clk
0:01:12]} 21. Be4 {[%clk 0:01:40]} 21... fxe5 {[%clk 0:01:05]} 22. Rhd1 {[%clk
0:01:39.9]} 22... a5 {[%clk 0:01:02.5]} 23. d6 {[%clk 0:01:27.4]} 23... Ba6
{[%clk 0:00:59.8]} 24. Rac1 {[%clk 0:01:07.5]} 24... Rad8 {[%clk 0:00:55]} 25.
Bc6 {[%clk 0:01:00.2]} 25... Rf8 {[%clk 0:00:46.1]} 26. d7 {[%clk 0:00:57.5]}
26... Rf6 {[%clk 0:00:37.8]} 27. Bb5 {[%clk 0:00:57.4]} 27... Bb7 {[%clk
0:00:35.9]} 28. Nxe5 {[%clk 0:00:53.2]} 28... g6 {[%clk 0:00:31.2]} 29. Rc7
{[%clk 0:00:43.6]} 29... Ba8 {[%clk 0:00:25.1]} 30. Rc8 {[%clk 0:00:40]} 30...
Rff8 {[%clk 0:00:25.2]} 31. Rdc1 {[%clk 0:00:36.7]} 31... Kg7 {[%clk 0:00:19.8]}
32. Rxd8 {[%clk 0:00:27.6]} 32... Rxd8 {[%clk 0:00:20.7]} 33. Rc8 {[%clk
0:00:28]} 33... Be7 {[%clk 0:00:20.4]} 34. Rxd8 {[%clk 0:00:19.6]} 34... Bxd8
{[%clk 0:00:21.3]} 35. Bc6 {[%clk 0:00:19.9]} 35... Kf6 {[%clk 0:00:15.8]} 36.
f4 {[%clk 0:00:19.9]} 36... Bxc6 {[%clk 0:00:14.3]} 37. Nxc6 {[%clk 0:00:20.8]}
37... Ke6 {[%clk 0:00:14.9]} 38. Nxd8+ {[%clk 0:00:21.1]} 38... Kxd7 {[%clk
0:00:15.8]} 39. Nb7 {[%clk 0:00:21.6]} 39... Kc6 {[%clk 0:00:15.7]} 40. Nxa5+
{[%clk 0:00:22.2]} 40... Kc5 {[%clk 0:00:16.6]} 41. Nxb3+ {[%clk 0:00:22.9]}
41... Kb4 {[%clk 0:00:17.5]} 42. a5 {[%clk 0:00:23.8]} 42... Ka4 {[%clk
0:00:18.3]} 43. a6 {[%clk 0:00:23.7]} 43... Kb5 {[%clk 0:00:18.2]} 44. a7 {[%clk
0:00:24]} 44... Ka4 {[%clk 0:00:19.1]} 45. a8=Q+ {[%clk 0:00:24.7]} 1-0

[Event "Early-Titled-Tuesday-Blitz-March-19-2024"]
[Site "Chess.com"]
[Date "2024.03.19"]
[Round "9"]
[White "MKlose11"]
[Black "GoltsevDmitry2000"]
[Result "0-1"]
[WhiteElo "2603"]
[BlackElo "2762"]
[TimeControl "180+1"]
[EndTime "9:44:53 PDT"]
[Termination "GoltsevDmitry2000 won by resignation"]

1. e4 {[%clk 0:03:00.9]} 1... e6 {[%clk 0:02:58.4]} 2. d4 {[%clk 0:02:59.3]}
2... d5 {[%clk 0:02:59.3]} 3. Nc3 {[%clk 0:02:59.7]} 3... c5 {[%clk 0:02:59.7]}
4. exd5 {[%clk 0:02:53]} 4... exd5 {[%clk 0:03:00.6]} 5. Bb5+ {[%clk 0:02:49.3]}
5... Nc6 {[%clk 0:03:00.1]} 6. Nf3 {[%clk 0:02:49.3]} 6... Nf6 {[%clk
0:02:57.7]} 7. O-O {[%clk 0:02:49]} 7... Be7 {[%clk 0:02:58]} 8. dxc5 {[%clk
0:02:47.2]} 8... Bxc5 {[%clk 0:02:58.9]} 9. Re1+ {[%clk 0:02:47.1]} 9... Be6
{[%clk 0:02:58.9]} 10. Be3 {[%clk 0:02:32.3]} 10... Bxe3 {[%clk 0:02:56.7]} 11.
Rxe3 {[%clk 0:02:33.2]} 11... O-O {[%clk 0:02:57]} 12. Nd4 {[%clk 0:02:32.2]}
12... Bd7 {[%clk 0:02:53.2]} 13. Be2 {[%clk 0:02:28.5]} 13... Qb6 {[%clk
0:02:48.8]} 14. Nxc6 {[%clk 0:01:55.7]} 14... bxc6 {[%clk 0:02:49.7]} 15. Na4
{[%clk 0:01:51]} 15... Qc7 {[%clk 0:02:46]} 16. Nc5 {[%clk 0:01:48.1]} 16...
Rfe8 {[%clk 0:02:43.3]} 17. Rxe8+ {[%clk 0:01:42.1]} 17... Rxe8 {[%clk
0:02:44.2]} 18. Bf3 {[%clk 0:01:40.3]} 18... Qb6 {[%clk 0:02:40.2]} 19. Qd4
{[%clk 0:01:35.9]} 19... Bf5 {[%clk 0:02:38.1]} 20. Rc1 {[%clk 0:01:28.7]} 20...
Qa5 {[%clk 0:02:35.9]} 21. b4 {[%clk 0:01:20.6]} 21... Qxa2 {[%clk 0:02:35.6]}
22. h3 {[%clk 0:01:20.8]} 22... Bxc2 {[%clk 0:02:33.4]} 23. Ra1 {[%clk
0:01:18.4]} 23... Qc4 {[%clk 0:02:31.2]} 24. Qxc4 {[%clk 0:01:14]} 24... dxc4
{[%clk 0:02:32.1]} 25. Bxc6 {[%clk 0:01:13.6]} 25... Re7 {[%clk 0:02:30.5]} 26.
Bb5 {[%clk 0:01:09.6]} 26... Bb3 {[%clk 0:02:19.3]} 27. Rc1 {[%clk 0:01:05.8]}
27... g6 {[%clk 0:02:02.8]} 28. Bxc4 {[%clk 0:01:02.4]} 28... Bxc4 {[%clk
0:02:03.7]} 29. Rxc4 {[%clk 0:01:02.8]} 29... Re2 {[%clk 0:02:02.4]} 30. Rf4
{[%clk 0:00:48.2]} 30... Nd5 {[%clk 0:01:58.9]} 31. Rd4 {[%clk 0:00:48.1]} 31...
Nc3 {[%clk 0:01:57.5]} 32. Rd7 {[%clk 0:00:46.8]} 32... Ra2 {[%clk 0:01:56.3]}
33. Nd3 {[%clk 0:00:41.3]} 33... Ne4 {[%clk 0:01:50.4]} 34. f3 {[%clk
0:00:36.5]} 34... Ng3 {[%clk 0:01:47.2]} 35. Ne5 {[%clk 0:00:32.9]} 35... f5
{[%clk 0:01:47]} 36. f4 {[%clk 0:00:24.9]} 36... Ne2+ {[%clk 0:01:45.1]} 37. Kf1
{[%clk 0:00:17.9]} 37... Nxf4 {[%clk 0:01:46]} 38. Nc6 {[%clk 0:00:16]} 38... a6
{[%clk 0:01:38.4]} 39. Ra7 {[%clk 0:00:08.6]} 39... Nxg2 {[%clk 0:01:35.8]} 40.
b5 {[%clk 0:00:09]} 40... Ne3+ {[%clk 0:01:28.8]} 41. Kg1 {[%clk 0:00:08.2]}
41... Rg2+ {[%clk 0:01:26.2]} 42. Kh1 {[%clk 0:00:08]} 42... axb5 {[%clk
0:01:27.1]} 43. Ne7+ {[%clk 0:00:06.4]} 43... Kf8 {[%clk 0:01:25.6]} 44. Nd5
{[%clk 0:00:06.6]} 44... Rg3 {[%clk 0:01:24.7]} 45. Kh2 {[%clk 0:00:03.1]} 45...
Nf1+ {[%clk 0:01:20]} 46. Kh1 {[%clk 0:00:03.1]} 46... Ne3 {[%clk 0:01:07.7]}
47. Nf6 {[%clk 0:00:03.2]} 47... Rxh3+ {[%clk 0:01:07.4]} 48. Kg1 {[%clk
0:00:03]} 48... Ng4 {[%clk 0:01:08.2]} 49. Nd7+ {[%clk 0:00:02.3]} 49... Ke8
{[%clk 0:01:08.3]} 50. Nc5 {[%clk 0:00:01.6]} 50... Re3 {[%clk 0:01:07.4]} 51.
Rb7 {[%clk 0:00:01]} 51... h5 {[%clk 0:01:08.3]} 52. Kf1 {[%clk 0:00:01.4]}
52... h4 {[%clk 0:01:08.7]} 53. Kg1 {[%clk 0:00:02.3]} 53... h3 {[%clk
0:01:09.2]} 54. Rxb5 {[%clk 0:00:02.5]} 54... h2+ {[%clk 0:01:09.6]} 55. Kg2
{[%clk 0:00:03.1]} 55... Re2+ {[%clk 0:01:09.8]} 0-1

[Event "Early-Titled-Tuesday-Blitz-March-19-2024"]
[Site "Chess.com"]
[Date "2024.03.19"]
[Round "9"]
[White "GelmanAlexander"]
[Black "koncheto"]
[Result "0-1"]
[WhiteElo "2673"]
[BlackElo "2519"]
[TimeControl "180+1"]
[EndTime "9:44:54 PDT"]
[Termination "koncheto won by checkmate"]

1. d4 {[%clk 0:02:50.4]} 1... Nf6 {[%clk 0:02:59.5]} 2. Nc3 {[%clk 0:02:50.6]}
2... d5 {[%clk 0:02:59.7]} 3. Bf4 {[%clk 0:02:50.8]} 3... a6 {[%clk 0:02:59.2]}
4. e3 {[%clk 0:02:51.2]} 4... Bf5 {[%clk 0:02:56.1]} 5. f3 {[%clk 0:02:50.9]}
5... h5 {[%clk 0:02:53.4]} 6. Nh3 {[%clk 0:02:46.9]} 6... e6 {[%clk 0:02:51.3]}
7. Ng5 {[%clk 0:02:44.3]} 7... c5 {[%clk 0:02:51.6]} 8. Qd2 {[%clk 0:02:25.4]}
8... Nc6 {[%clk 0:02:49.1]} 9. O-O-O {[%clk 0:02:25.6]} 9... Bd6 {[%clk
0:02:43.4]} 10. dxc5 {[%clk 0:02:21.5]} 10... Bxc5 {[%clk 0:02:41.8]} 11. Be2
{[%clk 0:01:56.1]} 11... Rc8 {[%clk 0:02:30.5]} 12. e4 {[%clk 0:01:54]} 12...
dxe4 {[%clk 0:02:29.2]} 13. Qe1 {[%clk 0:01:45.4]} 13... Qa5 {[%clk 0:02:10.6]}
14. fxe4 {[%clk 0:01:45.5]} 14... Bg6 {[%clk 0:01:49.8]} 15. e5 {[%clk
0:01:40.5]} 15... Nd5 {[%clk 0:01:23.2]} 16. Nxd5 {[%clk 0:01:32.2]} 16... Qxa2
{[%clk 0:01:05.3]} 17. Nc3 {[%clk 0:01:23.1]} 17... Qa1+ {[%clk 0:01:03.9]} 18.
Nb1 {[%clk 0:00:34.5]} 18... Nb4 {[%clk 0:00:17.8]} 19. Bc4 {[%clk 0:00:34.7]}
19... b5 {[%clk 0:00:07.4]} 20. Bb3 {[%clk 0:00:18.8]} 20... Na2+ {[%clk
0:00:03.8]} 21. Kd2 {[%clk 0:00:17.7]} 21... Bb4+ {[%clk 0:00:02]} 22. Nc3
{[%clk 0:00:15.3]} 22... Qxb2 {[%clk 0:00:02]} 23. Bxa2 {[%clk 0:00:08.8]} 23...
Bxc3+ {[%clk 0:00:01.1]} 24. Ke3 {[%clk 0:00:09.5]} 24... Bxe1 {[%clk
0:00:01.8]} 25. Rhxe1 {[%clk 0:00:08.7]} 25... Qxa2 {[%clk 0:00:02.2]} 26. Rd6
{[%clk 0:00:07.2]} 26... Qa3+ {[%clk 0:00:02.8]} 27. Kf2 {[%clk 0:00:06.9]}
27... Rxc2+ {[%clk 0:00:03.4]} 28. Kg1 {[%clk 0:00:07]} 28... Qc5+ {[%clk
0:00:04.2]} 29. Kh1 {[%clk 0:00:06.9]} 29... O-O {[%clk 0:00:03.6]} 30. h3
{[%clk 0:00:07.1]} 30... Bf5 {[%clk 0:00:03.4]} 31. Red1 {[%clk 0:00:07.6]}
31... Qf2 {[%clk 0:00:03.4]} 32. Bh2 {[%clk 0:00:07.2]} 32... Qxg2# {[%clk
0:00:03.7]} 0-1

[Event "Early-Titled-Tuesday-Blitz-March-19-2024"]
[Site "Chess.com"]
[Date "2024.03.19"]
[Round "9"]
[White "XDPS"]
[Black "Polish_fighter3000"]
[Result "0-1"]
[WhiteElo "2908"]
[BlackElo "3150"]
[TimeControl "180+1"]
[EndTime "9:44:57 PDT"]
[Termination "Polish_fighter3000 won on time"]

1. d4 {[%clk 0:03:00.9]} 1... Nf6 {[%clk 0:02:59.1]} 2. Bf4 {[%clk 0:03:00.7]}
2... e6 {[%clk 0:03:00]} 3. e3 {[%clk 0:03:00.9]} 3... Bd6 {[%clk 0:02:54.4]} 4.
Nf3 {[%clk 0:03:01.1]} 4... Bxf4 {[%clk 0:02:53.3]} 5. exf4 {[%clk 0:03:00.8]}
5... b6 {[%clk 0:02:53.1]} 6. Bd3 {[%clk 0:03:01.4]} 6... Bb7 {[%clk 0:02:51.2]}
7. O-O {[%clk 0:03:02]} 7... O-O {[%clk 0:02:50.3]} 8. Re1 {[%clk 0:03:02.6]}
8... d6 {[%clk 0:02:50.1]} 9. c3 {[%clk 0:03:01.4]} 9... Nbd7 {[%clk 0:02:49.9]}
10. Nbd2 {[%clk 0:03:01.8]} 10... Re8 {[%clk 0:02:49.3]} 11. Qc2 {[%clk
0:03:01]} 11... a6 {[%clk 0:02:49.5]} 12. h3 {[%clk 0:02:58.7]} 12... h6 {[%clk
0:02:49.6]} 13. Re2 {[%clk 0:02:54.3]} 13... c5 {[%clk 0:02:49.2]} 14. Rae1
{[%clk 0:02:52.6]} 14... Qc7 {[%clk 0:02:47.7]} 15. f5 {[%clk 0:02:52.7]} 15...
Bxf3 {[%clk 0:02:22]} 16. Nxf3 {[%clk 0:02:52]} 16... e5 {[%clk 0:01:58.6]} 17.
dxe5 {[%clk 0:02:48.5]} 17... dxe5 {[%clk 0:01:56.9]} 18. Nd2 {[%clk 0:02:27.2]}
18... b5 {[%clk 0:01:53.6]} 19. b3 {[%clk 0:02:07.3]} 19... Rad8 {[%clk
0:01:48.9]} 20. Re3 {[%clk 0:01:41.7]} 20... Nd5 {[%clk 0:01:43.1]} 21. Rg3
{[%clk 0:01:41.1]} 21... N7f6 {[%clk 0:01:41.2]} 22. Bf1 {[%clk 0:01:36.2]}
22... Kf8 {[%clk 0:01:32.9]} 23. a4 {[%clk 0:01:36.3]} 23... b4 {[%clk
0:01:04.2]} 24. cxb4 {[%clk 0:01:29]} 24... Nxb4 {[%clk 0:01:05.1]} 25. Qb2
{[%clk 0:01:22]} 25... e4 {[%clk 0:01:02.3]} 26. Rge3 {[%clk 0:01:13.9]} 26...
Qf4 {[%clk 0:00:57.6]} 27. Nc4 {[%clk 0:00:39.8]} 27... Qxf5 {[%clk 0:00:49]}
28. Qc1 {[%clk 0:00:35.7]} 28... Nfd5 {[%clk 0:00:44.4]} 29. Rg3 {[%clk
0:00:35.1]} 29... Nd3 {[%clk 0:00:30.8]} 30. Bxd3 {[%clk 0:00:32.5]} 30... exd3
{[%clk 0:00:31.7]} 31. Rxe8+ {[%clk 0:00:32.8]} 31... Rxe8 {[%clk 0:00:19.2]}
32. Nd6 {[%clk 0:00:30.6]} 32... Nf4 {[%clk 0:00:18.9]} 33. Qd2 {[%clk
0:00:12.3]} 33... Ne2+ {[%clk 0:00:13.8]} 34. Kh2 {[%clk 0:00:12.7]} 34... Qxf2
{[%clk 0:00:13.7]} 0-1

[Event "Early-Titled-Tuesday-Blitz-March-19-2024"]
[Site "Chess.com"]
[Date "2024.03.19"]
[Round "9"]
[White "Roedor"]
[Black "JaackCamel"]
[Result "1-0"]
[WhiteElo "2313"]
[BlackElo "2204"]
[TimeControl "180+1"]
[EndTime "9:44:57 PDT"]
[Termination "Roedor won on time"]

1. c4 {[%clk 0:02:50]} 1... e6 {[%clk 0:02:59.4]} 2. g3 {[%clk 0:02:49.8]} 2...
d5 {[%clk 0:02:59.2]} 3. Bg2 {[%clk 0:02:50.3]} 3... c6 {[%clk 0:02:59.2]} 4. d4
{[%clk 0:02:50.6]} 4... dxc4 {[%clk 0:02:59.1]} 5. Nf3 {[%clk 0:02:50.7]} 5...
b5 {[%clk 0:02:57.7]} 6. O-O {[%clk 0:02:50.2]} 6... Bb7 {[%clk 0:02:57.3]} 7.
Nc3 {[%clk 0:02:48.6]} 7... Nd7 {[%clk 0:02:56.4]} 8. Ne5 {[%clk 0:02:48.6]}
8... Qc8 {[%clk 0:02:53.3]} 9. Ne4 {[%clk 0:02:46.6]} 9... Ngf6 {[%clk
0:02:39.9]} 10. Nxf7 {[%clk 0:02:43.6]} 10... Kxf7 {[%clk 0:02:30.4]} 11. Ng5+
{[%clk 0:02:43.5]} 11... Ke7 {[%clk 0:02:14]} 12. Bh3 {[%clk 0:02:32.9]} 12...
Nb6 {[%clk 0:01:41.1]} 13. Bxe6 {[%clk 0:02:19.6]} 13... Nbd7 {[%clk 0:01:15.3]}
14. Bh3 {[%clk 0:02:16]} 14... h6 {[%clk 0:01:04.9]} 15. Nf3 {[%clk 0:02:13.5]}
15... c5 {[%clk 0:00:57.7]} 16. Ne5 {[%clk 0:02:02.3]} 16... Be4 {[%clk
0:00:43.2]} 17. f3 {[%clk 0:01:51.6]} 17... Bh7 {[%clk 0:00:40.9]} 18. a4 {[%clk
0:01:43.8]} 18... a6 {[%clk 0:00:30.2]} 19. d5 {[%clk 0:01:30.2]} 19... Qb7
{[%clk 0:00:20.2]} 20. Nc6+ {[%clk 0:01:27.7]} 20... Kf7 {[%clk 0:00:16.4]} 21.
e4 {[%clk 0:01:19.4]} 21... Bd6 {[%clk 0:00:15]} 22. Be6+ {[%clk 0:00:41.9]}
22... Kf8 {[%clk 0:00:13.6]} 23. Bf4 {[%clk 0:00:38.4]} 23... Bxf4 {[%clk
0:00:11.9]} 24. gxf4 {[%clk 0:00:39.3]} 24... Nb6 {[%clk 0:00:09.8]} 25. axb5
{[%clk 0:00:29.1]} 25... axb5 {[%clk 0:00:09.5]} 26. Rxa8+ {[%clk 0:00:28.8]}
26... Qxa8 {[%clk 0:00:09.5]} 27. e5 {[%clk 0:00:22.3]} 27... Ne8 {[%clk
0:00:08.5]} 28. f5 {[%clk 0:00:21.6]} 28... Bg8 {[%clk 0:00:08.4]} 29. Qd2
{[%clk 0:00:18.2]} 29... Bxe6 {[%clk 0:00:08.1]} 30. fxe6 {[%clk 0:00:19.1]}
30... Nc7 {[%clk 0:00:06]} 31. Qf4+ {[%clk 0:00:18.9]} 31... Kg8 {[%clk
0:00:04.9]} 32. Qf7+ {[%clk 0:00:19]} 32... Kh7 {[%clk 0:00:05.2]} 33. Qxc7
{[%clk 0:00:16.7]} 33... Nxd5 {[%clk 0:00:05]} 34. Qd6 {[%clk 0:00:15.7]} 34...
Nf4 {[%clk 0:00:02.9]} 35. e7 {[%clk 0:00:14.9]} 1-0

[Event "Early-Titled-Tuesday-Blitz-March-19-2024"]
[Site "Chess.com"]
[Date "2024.03.19"]
[Round "9"]
[White "Oleksandr_Bortnyk"]
[Black "Binary010"]
[Result "1/2-1/2"]
[WhiteElo "3054"]
[BlackElo "2866"]
[TimeControl "180+1"]
[EndTime "9:44:59 PDT"]
[Termination "Game drawn by repetition"]

1. e4 {[%clk 0:03:00.9]} 1... e5 {[%clk 0:02:57.7]} 2. Bc4 {[%clk 0:02:57.2]}
2... Nf6 {[%clk 0:02:56.8]} 3. d3 {[%clk 0:02:57.7]} 3... Nc6 {[%clk 0:02:55.2]}
4. Nc3 {[%clk 0:02:58]} 4... Bb4 {[%clk 0:02:54.8]} 5. Bd2 {[%clk 0:02:58]} 5...
O-O {[%clk 0:02:52.1]} 6. Nge2 {[%clk 0:02:58]} 6... d6 {[%clk 0:02:44.3]} 7. h3
{[%clk 0:02:57.6]} 7... Na5 {[%clk 0:02:41.8]} 8. O-O {[%clk 0:02:56.4]} 8...
Nxc4 {[%clk 0:02:40.6]} 9. dxc4 {[%clk 0:02:57.3]} 9... h6 {[%clk 0:02:40.2]}
10. a3 {[%clk 0:02:54.8]} 10... Bc5 {[%clk 0:02:34.3]} 11. b4 {[%clk 0:02:54]}
11... Bb6 {[%clk 0:02:34.3]} 12. Ng3 {[%clk 0:02:53.1]} 12... a5 {[%clk
0:02:32]} 13. Na4 {[%clk 0:02:47]} 13... Bd4 {[%clk 0:02:28.5]} 14. c3 {[%clk
0:02:45.7]} 14... Ba7 {[%clk 0:02:28.8]} 15. Qf3 {[%clk 0:02:36.1]} 15... Bd7
{[%clk 0:02:23.4]} 16. Nb2 {[%clk 0:02:33.9]} 16... axb4 {[%clk 0:02:06.1]} 17.
axb4 {[%clk 0:02:34.8]} 17... b5 {[%clk 0:02:06.3]} 18. cxb5 {[%clk 0:02:18.7]}
18... Bxb5 {[%clk 0:02:07.2]} 19. Rfd1 {[%clk 0:02:15.3]} 19... Bc6 {[%clk
0:02:02.8]} 20. Be3 {[%clk 0:02:05.2]} 20... Bxe3 {[%clk 0:02:01]} 21. Qxe3
{[%clk 0:02:06.1]} 21... Qd7 {[%clk 0:01:52.1]} 22. c4 {[%clk 0:01:59.6]} 22...
Qe6 {[%clk 0:01:49.5]} 23. b5 {[%clk 0:01:56.2]} 23... Bb7 {[%clk 0:01:48.9]}
24. f3 {[%clk 0:01:53.8]} 24... Nd7 {[%clk 0:01:42.7]} 25. Nf5 {[%clk
0:01:47.3]} 25... Nc5 {[%clk 0:01:40.7]} 26. Rxa8 {[%clk 0:01:20.9]} 26... Rxa8
{[%clk 0:01:40]} 27. b6 {[%clk 0:01:21.8]} 27... Ra2 {[%clk 0:01:09.7]} 28. bxc7
{[%clk 0:01:18.8]} 28... Rxb2 {[%clk 0:00:56.7]} 29. Rxd6 {[%clk 0:00:29.6]}
29... Qxc4 {[%clk 0:00:56.1]} 30. Nxh6+ {[%clk 0:00:20.6]} 30... gxh6 {[%clk
0:00:20]} 31. Qxh6 {[%clk 0:00:21.5]} 31... Rxg2+ {[%clk 0:00:19.7]} 32. Kxg2
{[%clk 0:00:20.6]} 32... Qe2+ {[%clk 0:00:20.2]} 33. Kg3 {[%clk 0:00:18.8]}
33... Nxe4+ {[%clk 0:00:18.4]} 34. fxe4 {[%clk 0:00:15.6]} 34... Qe1+ {[%clk
0:00:18.5]} 35. Kg4 {[%clk 0:00:10.4]} 35... Qxe4+ {[%clk 0:00:18.5]} 36. Kh5
{[%clk 0:00:09.4]} 36... Qf3+ {[%clk 0:00:16]} 37. Kh4 {[%clk 0:00:10]} 37...
Qf2+ {[%clk 0:00:11.1]} 38. Kh5 {[%clk 0:00:10.5]} 38... Qf3+ {[%clk 0:00:08.8]}
39. Kh4 {[%clk 0:00:11.2]} 39... Qf2+ {[%clk 0:00:07]} 40. Kh5 {[%clk
0:00:11.8]} 40... Qf3+ {[%clk 0:00:04.8]} 1/2-1/2